bitfinex-derivatives/quotes_SOLF0:USTF0_20241026
["timestamp","ask_amount","ask_price","bid_price","bid_amount"]
[1729955851148,4.8,168.2,168.09,20.5920107]
[1729955851448,4.8,168.2,168.18,2.9763]
[1729955852047,78.4720107,168.26,168.2,2.9759]
[1729955852249,4.8,168.25,168.17,20.5920107]
[1729955852547,7.7748,168.27,168.17,23.1665107]
[1729955852741,4.8,168.27,168.17,23.1665107]
[1729955853137,4.8,168.27,168.24,2.9752]
[1729955853348,57.88,168.35,168.2,25.3920107]
[1729955853652,4.8,168.35,168.23,20.5920107]
[1729955853944,4.8,168.35,168.24,6.0676]
[1729955854240,2.9728,168.39,168.33,2.9736]
[1729955854453,4.8,168.4,168.31,20.5920107]
[1729955854647,4.8,168.4,168.29,4.8]
[1729955854648,4.8,168.45,168.34,20.5920107]
[1729955854852,2.9715,168.46,168.39,2.9725]
[1729955855049,4.8,168.47,168.37,20.5920107]
[1729955855436,2.9717,168.45,168.38,2.9727]
[1729955855744,4.8,168.47,168.36,1.252]
[1729955855940,20.5920107,168.46,168.36,6.052]
[1729955856448,20.5920107,168.43,168.29,20.5920107]
[1729955856642,4.8,168.42,168.3,4.8]
[1729955857139,2.9731,168.37,168.3,2.9742]
[1729955857345,4.8,168.38,168.28,2.5044]
[1729955857550,4.8,168.38,168.29,20.5920107]
[1729955857741,4.8,168.38,168.31,2.974]
[1729955858444,7.7728,168.38,168.32,2.9739]
[1729955858644,7.7728,168.38,168.28,7.3044]
[1729955859146,2.973,168.37,168.31,2.9741]
[1729955859541,4.8,168.38,168.31,2.9741]
[1729955860248,4.8,168.38,168.28,2.5044]
[1729955860542,20.5920107,168.35,168.24,4.8]
[1729955860845,20.5920107,168.35,168.24,2.9753]
[1729955860846,4.8,168.34,168.24,2.9753]
[1729955861048,20.5920107,168.32,168.22,4.8]
[1729955861241,1.2814,168.33,168.22,4.8]
[1729955861442,2.9739,168.32,168.26,2.9748]
[1729955862741,2.9742,168.31,168.25,2.975]
[1729955862938,4.8,168.34,168.22,4.8]
[1729955863341,2.9741,168.32,168.26,2.9748]
[1729955864446,4.8,168.34,168.22,4.8]
[1729955864640,4.8,168.34,168.23,20.5920107]
[1729955865861,7.7736,168.34,168.23,20.5920107]
[1729955866044,7.7736,168.34,168.26,20.5920107]
[1729955866242,7.7736,168.34,168.27,1.2312]
[1729955866953,4.8,168.34,168.24,20.5920107]
[1729955867146,4.8,168.34,168.24,25.3920107]
[1729955867548,2.9738,168.33,168.24,25.3920107]
[1729955867753,4.8,168.34,168.24,25.3920107]
[1729955868447,7.7737,168.34,168.27,2.9748]
[1729955868653,4.8,168.34,168.24,25.3920107]
[1729955868953,2.9741,168.31,168.25,2.9751]
[1729955869255,4.8,168.34,168.24,4.8]
[1729955869648,2.9742,168.31,168.26,2.9748]
[1729955869842,4.8,168.34,168.26,2.9748]
[1729955870050,4.8,168.34,168.24,4.8]
[1729955870449,4.8,168.34,168.27,2.9747]
[1729955870848,2.9742,168.31,168.23,2.9753]
[1729955871148,4.8,168.3,168.23,2.9753]
[1729955871854,2.9748,168.28,168.24,2.9753]
[1729955873362,2.9751,168.26,168.22,2.9757]
[1729955873651,4.8,168.3,168.2,7.3485]
[1729955874058,2.9746,168.28,168.23,2.9753]
[1729955874360,2.9746,168.28,168.2,7.3485]
[1729955874653,4.8,168.3,168.27,2.9747]
[1729955874955,2.974,168.32,168.27,2.9747]
[1729955875158,2.9741,168.31,168.27,2.9747]
[1729955875349,4.86,168.33,168.28,2.9745]
[1729955876360,2.9739,168.32,168.28,2.9745]
[1729955876546,20.5920107,168.37,168.24,25.4520107]
[1729955876860,2.9734,168.35,168.24,25.4520107]
[1729955877359,2.9734,168.35,168.3,2.9741]
[1729955877659,2.9736,168.34,168.3,2.9741]
[1729955878158,1.2814,168.39,168.29,20.5920107]
[1729955878462,4.86,168.39,168.29,20.5920107]
[1729955878657,252.80656354,168.42,168.32,20.5920107]
[1729955878963,2.9725,168.41,168.32,25.4520107]
[1729955879167,2.9725,168.41,168.37,2.973]
[1729955879958,2.9725,168.4,168.37,2.973]
[1729955880151,252.80656354,168.42,168.32,25.4520107]
[1729955880348,20.5920107,168.48,168.41,2.9723]
[1729955880548,2.9716,168.46,168.38,20.5920107]
[1729955880953,4.86,168.47,168.38,20.5920107]
[1729955881157,1.1978,168.5,168.4,20.5920107]
[1729955881356,4.86,168.51,168.46,2.9713]
[1729955881655,4.86,168.51,168.41,1.2591]
[1729955881656,2.9708,168.5,168.41,1.2591]
[1729955881860,4.86,168.51,168.41,1.2591]
[1729955882360,2.5198,168.56,168.43,20.5920107]
[1729955882361,23.1118107,168.56,168.43,20.5920107]
[1729955882558,4.86,168.55,168.44,4.86]
[1729955882965,2.9702,168.53,168.44,4.86]
[1729955883256,4.86,168.55,168.46,20.5920107]
[1729955883459,2.97,168.54,168.46,20.5920107]
[1729955883660,4.86,168.55,168.45,2.9716]
[1729955883850,4.86,168.55,168.43,4.86]
[1729955884057,4.86,168.55,168.44,20.5920107]
[1729955884657,2.97,168.55,168.44,20.5920107]
[1729955884859,4.86,168.57,168.47,20.5920107]
[1729955885055,4.86,168.57,168.48,1.2813]
[1729955885257,2.9702,168.53,168.48,1.2813]
[1729955885460,4.86,168.57,168.48,1.2813]
[1729955886265,4.86,168.57,168.46,4.86]
[1729955886465,2.9703,168.53,168.47,2.9711]
[1729955886665,4.86,168.57,168.45,4.86]
[1729955886862,2.9702,168.53,168.49,2.9708]
[1729955887070,4.86,168.57,168.45,4.86]
[1729955887965,2.9703,168.53,168.48,2.9709]
[1729955888163,20.5920107,168.56,168.45,4.86]
[1729955888368,4.86,168.53,168.45,4.86]
[1729955888765,4.86,168.53,168.43,1.2409]
[1729955888967,25.4520107,168.53,168.42,1.2286]
[1729955891075,20.5920107,168.5,168.41,1.2591]
[1729955891367,45.6497107,168.59,168.39,20.5920107]
[1729955891368,4.86,168.49,168.39,20.5920107]
[1729955891666,2.9712,168.48,168.43,2.9719]
[1729955892566,2.9709,168.5,168.42,20.5920107]
[1729955892767,4.86,168.51,168.42,20.5920107]
[1729955892975,4.86,168.51,168.39,20.5920107]
[1729955893162,2.9717,168.45,168.38,1.2483]
[1729955893566,2.9717,168.45,168.4,2.9725]
[1729955893763,2.972,168.43,168.38,1.2483]
[1729955894064,4.86,168.47,168.38,1.2483]
[1729955894977,2.9721,168.43,168.38,4.221]
[1729955895274,4.86,168.47,168.35,4.86]
[1729955895275,25.4520107,168.47,168.35,4.86]
[1729955895462,25.4520107,168.47,168.33,20.5920107]
[1729955895463,20.5920107,168.44,168.26,4.86]
[1729955895663,20.5920107,168.41,168.32,2.9739]
[1729955895865,4.86,168.4,168.32,2.9739]
[1729955896467,2.9736,168.34,168.3,2.9742]
[1729955896865,4.86,168.35,168.27,3.7782]
[1729955897065,7.8334,168.35,168.31,2.974]
[1729955897276,4.86,168.35,168.27,3.7782]
[1729955897872,4.86,168.35,168.32,2.9739]
[1729955898668,4.86,168.35,168.27,3.7782]
[1729955898869,4.86,168.35,168.27,2.5035]
[1729955899368,2.974,168.32,168.27,5.4781]
[1729955899775,2.974,168.32,168.27,2.5035]
[1729955899968,2.974,168.32,168.28,2.9745]
[1729955900569,2.9738,168.33,168.29,2.9744]
[1729955900970,2.94748851,168.54,168.3,20.5920107]
[1729955901166,5.9398,168.55,168.29,5.26]
[1729955901167,20.5920107,168.49,168.34,20.5920107]
[1729955901372,20.5920107,168.46,168.34,5.26]
[1729955901572,25.8520107,168.46,168.34,5.26]
[1729955902270,5.26,168.46,168.35,20.5920107]
[1729955902578,6.4736,168.48,168.37,20.5920107]
[1729955903075,27.0656107,168.48,168.34,20.5920107]
[1729955903270,27.0656107,168.48,168.37,5.26]
[1729955903466,2.9719,168.44,168.39,2.9725]
[1729955903675,27.0656107,168.48,168.36,5.26]
[1729955904182,2.972,168.43,168.38,2.9727]
[1729955904972,2.9716,168.45,168.36,25.8520107]
[1729955905279,2.9716,168.45,168.37,1.2612]
[1729955905476,1.2136,168.48,168.37,1.2612]
[1729955905878,5.26,168.52,168.39,20.5920107]
[1729955906174,8.2303,168.53,168.47,2.9712]
[1729955906380,5.26,168.54,168.44,5.26]
[1729955906575,5.26,168.54,168.42,20.5920107]
[1729955906771,20.5920107,168.47,168.19,2.70703624]
[1729955906981,25.99780991,168.54,168.3,2.5415]
[1729955906982,20.5920107,168.44,168.3,2.5415]
[1729955907175,5.26,168.43,168.3,2.5415]
[1729955907391,20.5920107,168.41,168.3,2.5415]
[1729955907978,2.9734,168.36,168.3,5.5157]
[1729955908174,8.2334,168.36,168.3,5.5157]
[1729955908372,5.26,168.36,168.3,5.5157]
[1729955908576,2.9737,168.34,168.3,2.5415]
[1729955908771,2.9737,168.34,168.3,1.2651]
[1729955910379,5.26,168.36,168.3,1.2651]
[1729955910774,2.9734,168.35,168.31,2.974]
[1729955910975,2.9734,168.35,168.3,1.2651]
[1729955911980,2.9734,168.35,168.3,4.2393]
[1729955912680,2.9735,168.34,168.3,4.2393]
[1729955914371,8.2332,168.36,168.32,2.9738]
[1729955914578,2.9732,168.36,168.32,2.9738]
[1729955915373,2.973,168.37,168.33,2.9736]
[1729955915579,5.26,168.38,168.3,1.2651]
[1729955915883,2.9732,168.36,168.32,2.9737]
[1729955917084,2.973,168.37,168.3,1.2651]
[1729955917283,5.26,168.38,168.3,1.2651]
[1729955917886,5.26,168.38,168.33,2.9737]
[1729955917887,2.973,168.37,168.33,2.9737]
[1729955918073,5.26,168.4,168.31,1.2452]
[1729955918277,2.973,168.38,168.34,2.9735]
[1729955918481,5.26,168.4,168.31,1.2452]
[1729955918882,5.26,168.4,168.28,2.9746]
[1729955918883,2.974,168.32,168.28,2.9746]
[1729955919084,2.974,168.32,168.26,1.2764]
[1729955919283,5.26,168.36,168.26,1.2764]
[1729955919482,2.9737,168.34,168.29,2.9744]
[1729955919783,5.26,168.36,168.29,2.9744]
[1729955919979,2.9737,168.33,168.27,2.9746]
[1729955920178,5.26,168.36,168.26,6.5364]
[1729955920676,5.26,168.36,168.26,1.2764]
[1729955921178,38.68845915,168.4,168.26,1.2764]
[1729955921383,2.973,168.38,168.3,2.9742]
[1729955921581,38.68845915,168.4,168.31,1.1914]
[1729955922192,38.68845915,168.4,168.27,5.26]
[1729955922486,2.9737,168.33,168.29,2.9743]
[1729955922983,2.9737,168.33,168.27,6.5642]
[1729955923186,38.68845915,168.4,168.27,6.5642]
[1729955924790,2.9732,168.36,168.32,2.9738]
[1729955926184,38.68845915,168.4,168.33,2.9736]
[1729955926582,5.26,168.4,168.28,33.42845915]
[1729955926892,38.68845915,168.42,168.29,5.26]
[1729955927181,33.42845915,168.39,168.27,1.3042]
[1729955928583,2.9734,168.35,168.31,2.9739]
[1729955928781,2.9734,168.35,168.29,5.58]
[1729955928973,2.9734,168.35,168.3,2.9741]
[1729955929176,2.9734,168.35,168.29,5.58]
[1729955929672,2.9734,168.35,168.32,2.9739]
[1729955930989,20.57379146,168.4,168.29,5.58]
[1729955931285,20.57379146,168.4,168.21,5.58]
[1729955931286,20.57379146,168.33,168.21,5.58]
[1729955931689,2.9744,168.3,168.25,2.975]
[1729955931885,2.9744,168.3,168.21,5.58]
[1729955932987,20.57379146,168.36,168.22,20.57379146]
[1729955933296,5.58,168.37,168.22,20.57379146]
[1729955933589,2.9735,168.35,168.3,2.9741]
[1729955933783,1.2958,168.38,168.27,5.58]
[1729955933986,2.9732,168.36,168.31,2.9741]
[1729955934187,2.9732,168.36,168.28,2.5004]
[1729955934693,2.9731,168.37,168.32,2.9737]
[1729955935388,5.58,168.38,168.33,2.9736]
[1729955936083,2.9731,168.37,168.33,2.9736]
[1729955937289,5.58,168.38,168.35,2.9733]
[1729955937490,2.9728,168.39,168.35,2.9733]
[1729955939999,5.58,168.41,168.32,2.9737]
[1729955940298,5.58,168.41,168.29,5.58]
[1729955940500,2.9729,168.38,168.34,2.9734]
[1729955940798,5.58,168.41,168.34,2.9734]
[1729955940997,2.973,168.38,168.29,5.58]
[1729955941197,2.973,168.38,168.35,2.9734]
[1729955941397,5.58,168.41,168.29,5.58]
[1729955941598,20.57379146,168.37,168.3,2.9741]
[1729955941799,20.57379146,168.37,168.24,21.89139146]
[1729955942002,20.57379146,168.37,168.25,5.56]
[1729955942204,20.57379146,168.37,168.3,2.9742]
[1729955942407,5.56,168.36,168.3,2.9742]
[1729955942599,2.9737,168.34,168.3,2.9742]
[1729955943000,5.56,168.36,168.3,2.9742]
[1729955943200,2.9737,168.34,168.3,2.9742]
[1729955944300,5.56,168.36,168.25,5.56]
[1729955944511,2.973,168.38,168.25,5.56]
[1729955944707,5.58,168.39,168.27,20.57379146]
[1729955945608,2.9728,168.38,168.34,2.9734]
[1729955947196,2.9728,168.38,168.3,5.58]
[1729955947510,2.9728,168.38,168.35,2.9734]
[1729955947711,2.9727,168.39,168.3,26.15379146]
[1729955948206,1.2687,168.44,168.3,26.15379146]
[1729955948406,2.9722,168.42,168.33,20.57379146]
[1729955948612,2.9722,168.42,168.34,1.214]
[1729955949410,6.857,168.45,168.35,5.58]
[1729955949908,1.297,168.45,168.35,5.58]
[1729955950107,2.972,168.43,168.35,5.58]
[1729955950708,2.972,168.43,168.39,2.9726]
[1729955950908,1.297,168.45,168.35,5.58]
[1729955951208,5.56,168.5,168.38,20.57379146]
[1729955951415,24.35079146,168.52,168.38,20.57379146]
[1729955951613,2.9711,168.48,168.43,2.9718]
[1729955952003,57.78,168.56,168.4,5.56]
[1729955952004,2.9693,168.59,168.47,20.57379146]
[1729955952205,1.2657,168.6,168.53,2.9701]
[1729955952503,1.2657,168.6,168.48,5.56]
[1729955952702,20.57379146,168.57,168.42,1.1991]
[1729955952904,26.13379146,168.57,168.42,1.1991]
[1729955953104,20.57379146,168.54,168.42,1.1991]
[1729955953304,20.57379146,168.54,168.43,5.56]
[1729955953508,20.57379146,168.51,168.42,1.1991]
[1729955953712,20.57379146,168.51,168.42,5.56]
[1729955953911,2.9715,168.46,168.42,5.56]
[1729955954213,20.57379146,168.48,168.4,181.38499]
[1729955954406,2.9723,168.41,168.4,181.38499]
[1729955954605,5.56,168.47,168.4,181.38499]
[1729955954803,1.2657,168.5,168.4,181.38499]
[1729955955010,5.56,168.49,168.4,181.38499]
[1729955955308,5.56,168.49,168.43,2.9719]
[1729955955309,2.9712,168.48,168.43,2.9719]
[1729955955702,20.57379146,168.47,168.4,181.38499]
[1729955955905,2.9723,168.42,168.4,181.38499]
[1729955956617,2.9723,168.41,168.4,175.43409]
[1729955960912,2.972,168.43,168.4,175.43409]
[1729955961111,5.5,168.44,168.4,175.43409]
[1729955962316,2.972,168.43,168.4,175.43409]
[1729955966718,2.9715,168.46,168.4,175.43409]
[1729955967023,2.9715,168.46,168.4,176.75199]
[1729955967218,5.5,168.5,168.45,2.9715]
[1729955967420,5.5,168.5,168.4,176.75199]
[1729955967421,5.5,168.5,168.41,1.278]
[1729955969022,2.9712,168.48,168.44,2.9717]
[1729955972033,2.9709,168.5,168.46,2.9713]
[1729955972235,57.76,168.55,168.44,20.57379146]
[1729955972524,176.96005263,168.57,168.47,20.57379146]
[1729955972732,5.5,168.58,168.49,20.57379146]
[1729955973123,2.9698,168.56,168.52,2.9702]
[1729955973324,2.9698,168.56,168.49,21.87279146]
[1729955973532,78.33379146,168.65,168.49,27.37279146]
[1729955973736,2.9695,168.57,168.53,2.9701]
[1729955974321,3.00324332,168.64,168.55,20.57379146]
[1729955974322,8.50324332,168.64,168.55,20.57379146]
[1729955974623,6.4602,168.67,168.55,20.57379146]
[1729955974824,2.9686,168.62,168.58,2.9693]
[1729955975326,27.03399146,168.67,168.56,1.2794]
[1729955975532,20.57379146,168.65,168.51,5.5]
[1729955975727,20.57379146,168.62,168.5,2.5732]
[1729955975930,2.9695,168.58,168.54,2.97]
[1729955976234,5.5,168.61,168.5,2.5732]
[1729955976532,2.9691,168.6,168.55,2.9697]
[1729955977227,2.9692,168.59,168.55,2.9697]
[1729955979132,2.9695,168.57,168.53,2.9701]
[1729955979323,5.5,168.61,168.52,5.5]
[1729955979729,2.9693,168.58,168.52,5.5]
[1729955980131,5.5,168.61,168.52,5.5]
[1729955980427,21.53399146,168.67,168.52,26.07379146]
[1729955980634,5.5,168.66,168.52,26.07379146]
[1729955980825,2.9687,168.62,168.57,2.9694]
[1729955981022,20.57379146,168.62,168.46,20.57379146]
[1729955982027,26.07379146,168.65,168.49,20.57379146]
[1729955982225,26.07379146,168.65,168.5,5.5]
[1729955982735,26.07379146,168.65,168.54,2.9699]
[1729955982922,20.57379146,168.65,168.54,2.9699]
[1729955983231,5.5,168.64,168.57,2.9694]
[1729955984232,2.9688,168.61,168.57,2.9694]
[1729955986834,2.9688,168.61,168.58,2.9693]
[1729955987235,5.38,168.64,168.58,2.9693]
[1729955987444,20.57379146,168.7,168.57,20.57379146]
[1729955987742,5.38,168.68,168.57,20.57379146]
[1729955988141,2.9682,168.65,168.57,20.57379146]
[1729955988332,2.9682,168.65,168.58,12.82791455]
[1729955988537,2.9682,168.65,168.61,2.9686]
[1729955989036,5.38,168.67,168.6,12.82791455]
[1729955989243,2.9681,168.66,168.62,2.9685]
[1729955990143,5.38,168.67,168.62,2.9685]
[1729955990338,2.9681,168.65,168.62,2.9685]
[1729955990945,2.9683,168.64,168.61,1.3085]
[1729955991443,2.9688,168.62,168.58,2.9693]
[1729955991645,5.38,168.67,168.56,1.3085]
[1729955992343,2.9687,168.62,168.58,2.9692]
[1729955992644,5.38,168.67,168.56,1.3085]
[1729955992843,2.9684,168.64,168.6,2.9688]
[1729955994243,2.968,168.66,168.58,20.5209166]
[1729955994742,2.968,168.66,168.62,2.9685]
[1729955994943,5.38,168.68,168.62,2.9685]
[1729955995534,2.968,168.66,168.62,2.9685]
[1729955997048,5.38,168.68,168.56,21.8294166]
[1729955997655,2.9684,168.64,168.6,2.9688]
[1729955999949,2.9684,168.64,168.56,21.8294166]
[1729956000541,2.9684,168.64,168.6,2.9688]
[1729956001454,5.38,168.67,168.58,20.5209166]
[1729956002257,2.9681,168.65,168.62,2.9686]
[1729956002949,2.968,168.66,168.62,2.9685]
[1729956003148,23.47124897,168.72,168.61,20.5209166]
[1729956003149,2.95033237,168.72,168.61,20.5209166]
[1729956003352,5.38,168.71,168.62,2.4496]
[1729956003751,2.9673,168.7,168.62,2.4496]
[1729956004053,5.38,168.75,168.64,20.5209166]
[1729956004255,5.38,168.75,168.65,6.6659]
[1729956004460,57.68,168.92,168.69,20.5209166]
[1729956004656,0.9572,168.87,168.72,20.5209166]
[1729956004860,2.965,168.83,168.77,2.9658]
[1729956005160,26.8581166,168.87,168.77,2.9658]
[1729956005463,5.38,168.87,168.77,20.5209166]
[1729956005757,5.38,168.87,168.76,5.38]
[1729956005953,2.9654,168.81,168.76,5.38]
[1729956006154,25.9009166,168.87,168.76,5.38]
[1729956006360,25.9009166,168.87,168.75,20.5209166]
[1729956006659,20.5209166,168.85,168.73,9.2371]
[1729956007345,2.9659,168.78,168.73,9.2371]
[1729956007754,20.5209166,168.85,168.73,9.2371]
[1729956008263,5.38,168.87,168.73,9.2371]
[1729956008449,2.965,168.83,168.77,2.9658]
[1729956008853,2.965,168.83,168.75,20.5209166]
[1729956008854,20.5209166,168.9,168.75,20.5209166]
[1729956009054,2.9644,168.86,168.8,2.9653]
[1729956009253,5.38,168.89,168.8,2.9653]
[1729956010151,20.5209166,168.9,168.8,2.9653]
[1729956010354,2.9647,168.85,168.8,2.9653]
[1729956010547,5.38,168.89,168.78,25.9009166]
[1729956010758,57.68,168.92,168.81,20.5209166]
[1729956010959,63.06,168.92,168.82,1.2589]
[1729956011147,63.06,168.92,168.82,2.5349]
[1729956011355,2.9635,168.91,168.83,25.9009166]
[1729956011556,2.9635,168.91,168.83,27.2039166]
[1729956011752,2.9635,168.91,168.87,2.9641]
[1729956011961,5.38,168.94,168.83,27.2039166]
[1729956012159,0.9544,168.98,168.83,27.2039166]
[1729956012466,5.38,168.97,168.89,2.9638]
[1729956012759,5.38,168.97,168.88,5.38]
[1729956012957,2.9632,168.93,168.88,8.3439]
[1729956013263,5.38,168.97,168.88,5.38]
[1729956013460,2.963,168.94,168.9,2.9637]
[1729956013756,5.38,168.97,168.88,5.38]
[1729956014063,2.9631,168.94,168.89,2.9638]
[1729956014256,5.38,168.97,168.88,5.38]
[1729956015058,2.9631,168.94,168.89,2.9638]
[1729956015360,5.38,168.98,168.89,2.9638]
[1729956015659,2.9631,168.94,168.89,2.9638]
[1729956015856,5.38,168.98,168.89,2.9638]
[1729956016056,5.38,168.98,168.88,8.344]
[1729956016660,2.9633,168.93,168.88,8.344]
[1729956017058,2.9633,168.93,168.89,2.9638]
[1729956017254,5.38,168.98,168.88,5.38]
[1729956017654,2.963,168.94,168.9,2.9637]
[1729956018164,2.9634,168.92,168.88,5.38]
[1729956018656,2.9633,168.93,168.88,8.3439]
[1729956019050,5.38,168.98,168.88,5.38]
[1729956019262,5.38,168.98,168.88,25.9009166]
[1729956019650,57.66,169.01,168.91,20.5209166]
[1729956019853,5.34,169.01,168.92,1.3179]
[1729956020061,5.34,169.01,168.92,2.6303]
[1729956020255,21.4753166,169.05,168.92,2.6303]
[1729956020256,5.34,169.02,168.92,15.43883556]
[1729956020457,18.14853556,169.02,168.92,15.43883556]
[1729956020655,2.9627,168.96,168.92,15.43883556]
[1729956020856,5.34,169.01,168.92,12.80853556]
[1729956023361,5.34,169.01,168.92,15.77183556]
[1729956024064,2.9626,168.97,168.92,15.77183556]
[1729956024266,5.34,169.06,168.98,2.9622]
[1729956024456,18.14853556,169.05,168.95,1.2621]
[1729956024861,2.9621,169.0,168.95,5.5102]
[1729956025261,18.14853556,169.05,168.95,2.5475]
[1729956025464,2.9626,168.97,168.95,1.2621]
[1729956025666,12.80853556,169.03,168.95,1.2621]
[1729956025865,12.80853556,169.01,168.91,1.2386]
[1729956026064,13.76123556,169.09,168.91,1.2386]
[1729956026065,2.9633,168.93,168.91,1.2386]
[1729956026367,18.14853556,169.0,168.91,1.2386]
[1729956027562,13.76123556,169.09,168.92,12.80853556]
[1729956027563,12.80853556,169.04,168.92,12.80853556]
[1729956027766,18.14853556,169.04,168.93,6.5659]
[1729956027966,18.14853556,169.04,168.93,9.529]
[1729956028164,18.14853556,169.04,168.94,1.2751]
[1729956028370,18.14853556,169.04,168.94,14.08363556]
[1729956028567,2.9622,168.99,168.95,2.9627]
[1729956029368,2.9615,169.03,168.97,15.77103556]
[1729956029670,2.9615,169.03,168.99,12.80853556]
[1729956030371,2.9615,169.03,168.94,1.2751]
[1729956030372,2.9619,169.01,168.96,2.9625]
[1729956030571,5.34,169.08,168.95,20.48219495]
[1729956030963,5.34,169.08,168.98,2.9622]
[1729956031168,5.34,169.08,168.99,1.2076]
[1729956031568,2.9614,169.04,168.99,4.1696]
[1729956032273,5.34,169.08,168.99,1.2076]
[1729956033966,2.961,169.06,168.99,1.2076]
[1729956034168,5.34,169.08,168.99,1.2076]
[1729956035275,2.9617,169.02,168.99,1.2076]
[1729956035663,5.34,169.08,168.99,1.2076]
[1729956036362,2.9611,169.06,169.02,2.9616]
[1729956036567,5.34,169.1,169.02,2.9616]
[1729956037272,2.9611,169.05,169.01,2.9617]
[1729956037474,5.34,169.1,168.99,1.2076]
[1729956037772,2.91757944,169.12,169.02,2.9615]
[1729956037976,5.34,169.12,169.03,1.29]
[1729956038178,8.3710244,169.12,169.03,1.29]
[1729956038480,2.9608,169.07,169.03,4.2513]
[1729956038865,8.2771287,169.12,169.03,1.29]
[1729956039078,2.9607,169.07,169.03,4.2513]
[1729956039867,2.9604,169.09,169.05,2.9609]
[1729956040071,5.9179,169.18,169.05,2.9609]
[1729956040072,5.34,169.16,169.05,20.48219495]
[1729956040477,2.9593,169.15,169.08,2.9604]
[1729956040773,20.48219495,169.15,169.04,5.34]
[1729956040974,2.9595,169.15,169.06,2.9608]
[1729956041178,25.82219495,169.18,169.05,20.48219495]
[1729956041474,2.9598,169.13,169.08,23.44259495]
[1729956041678,2.9598,169.13,169.09,1.2109]
[1729956041977,2.9596,169.14,169.09,4.1712]
[1729956042172,5.34,169.19,169.09,10.8104]
[1729956042378,24.35593258,169.22,169.09,10.8104]
[1729956042577,5.34,169.21,169.1,2.9601]
[1729956042781,5.34,169.21,169.09,7.8501]
[1729956043177,20.48219495,169.2,169.09,2.5101]
[1729956044773,2.9598,169.13,169.09,2.5101]
[1729956045799,21.43349495,169.22,169.11,2.9599]
[1729956046081,21.43349495,169.22,169.1,20.48219495]
[1729956046082,5.34,169.21,169.12,1.2886]
[1729956046491,2.9596,169.14,169.12,1.2886]
[1729956047182,2.9596,169.14,169.09,5.4703]
[1729956047183,2.9599,169.12,169.09,2.5101]
[1729956047577,2.9602,169.1,169.09,2.5101]
[1729956047777,5.32,169.16,169.05,1.2872]
[1729956048089,5.32,169.16,169.06,5.32]
[1729956048385,5.32,169.16,169.05,1.2872]
[1729956049081,2.9597,169.13,169.05,1.2872]
[1729956049388,5.32,169.16,169.05,1.2872]
[1729956049888,2.9604,169.09,169.05,1.2872]
[1729956050076,5.32,169.16,169.05,1.2872]
[1729956050480,2.9606,169.08,169.05,1.2872]
[1729956051683,2.9611,169.05,169.01,7.7787]
[1729956051874,20.48219495,169.14,169.01,7.7787]
[1729956051875,5.32,169.1,169.01,7.7787]
[1729956052075,2.9608,169.07,169.02,2.9615]
[1729956052280,5.32,169.1,169.02,15.75593326]
[1729956052682,5.32,169.13,169.05,12.79443326]
[1729956052979,5.32,169.14,169.05,12.79443326]
[1729956053177,2.96,169.12,169.05,15.75543326]
[1729956053377,5.32,169.14,169.05,15.75543326]
[1729956053582,5.32,169.14,169.05,12.79443326]
[1729956053778,5.32,169.14,169.07,12.79443326]